[Event "December 19 Early 2023"]
[Site "https://www.chess.com"]
[Date "2023.12.19"]
[Round "6"]
[White "Kochiev, Ivan"]
[Black "Limontaite, Simona"]
[Result "1-0"]
[Board "150"]
[TimeControl "180+1"]
[WhiteFideId "2917890"]
[BlackFideId "12802506"]
[WhiteElo "2285"]
[BlackElo "2092"]
[WhiteTeam "BUL"]
[BlackTeam "LTU"]
[WhiteClock "0:01:02"]
[BlackClock "0:01:12"]

1. e4 {[%clk 0:02:17]}  d6 {[%clk 0:02:55]} 2. d4 {[%clk 0:02:17]}  Nf6 {[%clk 0:02:56]} 3. Bd3 {[%clk 0:02:17]}  c6 {[%clk 0:02:56]} 4. f4 {[%clk 0:02:17]}  e5 {[%clk 0:02:55]} 5. c3 {[%clk 0:02:16]}  Qb6 {[%clk 0:02:53]} 6. Nf3 {[%clk 0:02:16]}  Bg4 {[%clk 0:02:52]} 7. fxe5 {[%clk 0:02:12]}  dxe5 {[%clk 0:02:51]} 8. dxe5 {[%clk 0:02:00]}  Nfd7 {[%clk 0:02:49]} 9. Qe2 {[%clk 0:01:55]}  Nxe5 {[%clk 0:02:47]} 10. h3 {[%clk 0:01:39]}  Nxf3+ {[%clk 0:02:45]} 11. gxf3 {[%clk 0:01:39]}  Be6 {[%clk 0:02:46]} 12. Be3 {[%clk 0:01:38]}  Qc7 {[%clk 0:02:46]} 13. Nd2 {[%clk 0:01:38]}  Nd7 {[%clk 0:02:36]} 14. f4 {[%clk 0:01:36]}  Nc5 {[%clk 0:02:35]} 15. Bc2 {[%clk 0:01:29]}  f6 {[%clk 0:02:20]} 16. Bxc5 {[%clk 0:01:14]}  Bxc5 {[%clk 0:02:20]} 17. Qh5+ {[%clk 0:01:14]}  Bf7 {[%clk 0:02:18]} 18. Qxc5 {[%clk 0:01:13]}  Qxf4 {[%clk 0:02:19]} 19. O-O-O {[%clk 0:01:02]}  Kd8 {[%clk 0:01:12]} 1-0

[Event "December 19 Early 2023"]
[Site "https://www.chess.com"]
[Date "2023.12.19"]
[Round "6"]
[White "Fernandez Sanchez, Mario Andres"]
[Black "DeyanKostov"]
[Result "0-1"]
[Board "154"]
[TimeControl "180+1"]
[WhiteFideId "6501621"]
[WhiteElo "2050"]
[BlackElo "2472"]
[WhiteTeam "CRC"]
[WhiteClock "0:00:00"]
[BlackClock "0:00:11"]

1. d4 {[%clk 0:03:00]}  d5 {[%clk 0:02:59]} 2. Bf4 {[%clk 0:02:59]}  Nf6 {[%clk 0:02:59]} 3. Nc3 {[%clk 0:02:59]}  e6 {[%clk 0:02:59]} 4. Nb5 {[%clk 0:02:59]}  Bd6 {[%clk 0:02:59]} 5. Nxd6+ {[%clk 0:02:58]}  cxd6 {[%clk 0:03:00]} 6. Nf3 {[%clk 0:02:56]}  Nc6 {[%clk 0:03:00]} 7. e3 {[%clk 0:02:56]}  O-O {[%clk 0:03:00]} 8. c3 {[%clk 0:02:55]}  Re8 {[%clk 0:03:00]} 9. h3 {[%clk 0:02:52]}  h6 {[%clk 0:02:59]} 10. Be2 {[%clk 0:02:52]}  e5 {[%clk 0:02:58]} 11. Bh2 {[%clk 0:02:52]}  Bf5 {[%clk 0:02:57]} 12. O-O {[%clk 0:02:51]}  Qd7 {[%clk 0:02:55]} 13. Qb3 {[%clk 0:02:48]}  g5 {[%clk 0:02:51]} 14. Rad1 {[%clk 0:02:40]}  e4 {[%clk 0:02:49]} 15. Nd2 {[%clk 0:02:37]}  Rac8 {[%clk 0:02:42]} 16. Qa3 {[%clk 0:02:37]}  Red8 {[%clk 0:02:35]} 17. c4 {[%clk 0:02:30]}  Be6 {[%clk 0:02:29]} 18. b3 {[%clk 0:02:18]}  a6 {[%clk 0:02:24]} 19. Rc1 {[%clk 0:02:17]}  Ne7 {[%clk 0:01:55]} 20. cxd5 {[%clk 0:02:13]}  Bxd5 {[%clk 0:01:45]} 21. Rxc8 {[%clk 0:02:11]}  Nxc8 {[%clk 0:01:46]} 22. Rc1 {[%clk 0:02:04]}  Na7 {[%clk 0:01:44]} 23. Bc4 {[%clk 0:01:59]}  Nb5 {[%clk 0:01:14]} 24. Qb4 {[%clk 0:01:47]}  Bc6 {[%clk 0:00:57]} 25. a4 {[%clk 0:01:37]}  Nc7 {[%clk 0:00:57]} 26. Be2 {[%clk 0:01:20]}  Ncd5 {[%clk 0:00:56]} 27. Qa3 {[%clk 0:01:18]}  Ne7 {[%clk 0:00:54]} 28. Nc4 {[%clk 0:01:16]}  Nf5 {[%clk 0:00:46]} 29. Bg4 {[%clk 0:00:47]}  Nxg4 {[%clk 0:00:46]} 30. hxg4 {[%clk 0:00:48]}  Nh4 {[%clk 0:00:46]} 31. Qxd6 {[%clk 0:00:45]}  Qc8 {[%clk 0:00:37]} 32. Qg3 {[%clk 0:00:45]}  Bd7 {[%clk 0:00:30]} 33. Qe5 {[%clk 0:00:18]}  b5 {[%clk 0:00:27]} 34. axb5 {[%clk 0:00:19]}  axb5 {[%clk 0:00:28]} 35. Qxe4 {[%clk 0:00:19]}  bxc4 {[%clk 0:00:27]} 36. bxc4 {[%clk 0:00:20]}  Bxg4 {[%clk 0:00:26]} 37. Be5 {[%clk 0:00:19]}  Bf3 {[%clk 0:00:18]} 38. gxf3 {[%clk 0:00:17]}  Qh3 {[%clk 0:00:18]} 39. f4 {[%clk 0:00:18]}  Nf3+ {[%clk 0:00:17]} 40. Qxf3 {[%clk 0:00:15]}  Qxf3 {[%clk 0:00:18]} 41. fxg5 {[%clk 0:00:15]}  hxg5 {[%clk 0:00:19]} 42. c5 {[%clk 0:00:15]}  Qg4+ {[%clk 0:00:18]} 43. Bg3 {[%clk 0:00:14]}  Qe6 {[%clk 0:00:17]} 44. c6 {[%clk 0:00:13]}  Rc8 {[%clk 0:00:17]} 45. c7 {[%clk 0:00:13]}  f5 {[%clk 0:00:18]} 46. Be5 {[%clk 0:00:13]}  f4 {[%clk 0:00:17]} 47. exf4 {[%clk 0:00:12]}  gxf4 {[%clk 0:00:18]} 48. Kf1 {[%clk 0:00:12]}  f3 {[%clk 0:00:18]} 49. Rc3 {[%clk 0:00:12]}  Qh3+ {[%clk 0:00:15]} 50. Ke1 {[%clk 0:00:12]}  Ra8 {[%clk 0:00:15]} 51. Kd2 {[%clk 0:00:10]}  Qh6+ {[%clk 0:00:14]} 52. Kd3 {[%clk 0:00:10]}  Qg6+ {[%clk 0:00:14]} 53. Ke3 {[%clk 0:00:10]}  Qg5+ {[%clk 0:00:13]} 54. Kxf3 {[%clk 0:00:10]}  Rf8+ {[%clk 0:00:13]} 55. Ke2 {[%clk 0:00:10]}  Qg4+ {[%clk 0:00:13]} 56. Ke1 {[%clk 0:00:08]}  Qg1+ {[%clk 0:00:13]} 57. Kd2 {[%clk 0:00:08]}  Rxf2+ {[%clk 0:00:14]} 58. Kd3 {[%clk 0:00:08]}  Qf1+ {[%clk 0:00:10]} 59. Ke4 {[%clk 0:00:08]}  Qg2+ {[%clk 0:00:09]} 60. Kd3 {[%clk 0:00:07]}  Rf3+ {[%clk 0:00:10]} 61. Kc4 {[%clk 0:00:07]}  Qe2+ {[%clk 0:00:08]} 62. Kb4 {[%clk 0:00:07]}  Rxc3 {[%clk 0:00:05]} 63. Kxc3 {[%clk 0:00:08]}  Qe3+ {[%clk 0:00:06]} 64. Kc4 {[%clk 0:00:08]}  Qh3 {[%clk 0:00:06]} 65. Kc5 {[%clk 0:00:07]}  Qd7 {[%clk 0:00:07]} 66. Bd6 {[%clk 0:00:07]}  Kf7 {[%clk 0:00:06]} 67. d5 {[%clk 0:00:07]}  Ke8 {[%clk 0:00:07]} 68. Bf4 {[%clk 0:00:07]}  Qc8 {[%clk 0:00:07]} 69. d6 {[%clk 0:00:07]}  Kd7 {[%clk 0:00:08]} 70. Kd4 {[%clk 0:00:07]}  Qb7 {[%clk 0:00:09]} 71. Ke5 {[%clk 0:00:07]}  Kc8 {[%clk 0:00:09]} 72. Bg5 {[%clk 0:00:06]}  Qb2+ {[%clk 0:00:08]} 73. Kf5 {[%clk 0:00:06]}  Kd7 {[%clk 0:00:08]} 74. Be7 {[%clk 0:00:06]}  Qd4 {[%clk 0:00:08]} 75. Kg5 {[%clk 0:00:05]}  Qd5+ {[%clk 0:00:09]} 76. Kf6 {[%clk 0:00:05]}  Qb7 {[%clk 0:00:09]} 77. Kf5 {[%clk 0:00:03]}  Qc8 {[%clk 0:00:09]} 78. Ke5 {[%clk 0:00:03]}  Kc6 {[%clk 0:00:10]} 79. Kf6 {[%clk 0:00:03]}  Qd7 {[%clk 0:00:10]} 80. Ke5 {[%clk 0:00:03]}  Kc5 {[%clk 0:00:10]} 81. Ke4 {[%clk 0:00:03]}  Qe6+ {[%clk 0:00:10]} 82. Kd3 {[%clk 0:00:03]}  Kd5 {[%clk 0:00:10]} 83. Kc3 {[%clk 0:00:03]}  Qg4 {[%clk 0:00:11]} 84. Kd3 {[%clk 0:00:02]}  Qh3+ {[%clk 0:00:10]} 85. Kc2 {[%clk 0:00:00]}  Kc4 {[%clk 0:00:11]} 0-1

[Event "December 19 Early 2023"]
[Site "https://www.chess.com"]
[Date "2023.12.19"]
[Round "6"]
[White "Golubenko, Valentina"]
[Black "Omariev, Maksim"]
[Result "0-1"]
[Board "156"]
[TimeControl "180+1"]
[WhiteFideId "4501993"]
[BlackFideId "4193423"]
[WhiteElo "2126"]
[BlackElo "2451"]
[WhiteTeam "CRO"]
[BlackTeam "RUS"]
[WhiteClock "0:00:54"]
[BlackClock "0:01:44"]

1. d4 {[%clk 0:03:00]}  h5 {[%clk 0:02:52]} 2. c4 {[%clk 0:02:58]}  h4 {[%clk 0:02:53]} 3. h3 {[%clk 0:02:59]}  d6 {[%clk 0:02:53]} 4. Nc3 {[%clk 0:02:58]}  e5 {[%clk 0:02:53]} 5. dxe5 {[%clk 0:02:58]}  dxe5 {[%clk 0:02:54]} 6. Qxd8+ {[%clk 0:02:58]}  Kxd8 {[%clk 0:02:55]} 7. Nf3 {[%clk 0:02:47]}  f6 {[%clk 0:02:55]} 8. Be3 {[%clk 0:02:44]}  c6 {[%clk 0:02:55]} 9. O-O-O+ {[%clk 0:02:44]}  Kc7 {[%clk 0:02:55]} 10. g4 {[%clk 0:02:36]}  hxg3 {[%clk 0:02:56]} 11. fxg3 {[%clk 0:02:36]}  Be6 {[%clk 0:02:50]} 12. b3 {[%clk 0:02:25]}  Ba3+ {[%clk 0:02:43]} 13. Kb1 {[%clk 0:02:04]}  Nh6 {[%clk 0:02:44]} 14. Bc1 {[%clk 0:01:45]}  Bb4 {[%clk 0:02:33]} 15. Bxh6 {[%clk 0:01:36]}  Rxh6 {[%clk 0:02:28]} 16. Kb2 {[%clk 0:01:26]}  Nd7 {[%clk 0:02:19]} 17. e4 {[%clk 0:01:19]}  Nc5 {[%clk 0:02:13]} 18. Nd5+ {[%clk 0:00:56]}  cxd5 {[%clk 0:02:11]} 19. exd5 {[%clk 0:00:57]}  Bg4 {[%clk 0:01:50]} 20. h4 {[%clk 0:00:54]}  Bxf3 {[%clk 0:01:44]} 0-1

[Event "December 19 Early 2023"]
[Site "https://www.chess.com"]
[Date "2023.12.19"]
[Round "6"]
[White "Fernandez Hernandez, Gerardo"]
[Black "Herman, Daniel"]
[Result "0-1"]
[Board "157"]
[TimeControl "180+1"]
[WhiteFideId "2207400"]
[BlackFideId "30935008"]
[WhiteElo "2269"]
[BlackElo "1897"]
[WhiteTeam "ESP"]
[BlackTeam "USA"]
[WhiteClock "0:00:13"]
[BlackClock "0:00:34"]

1. e4 {[%clk 0:03:00]}  e5 {[%clk 0:02:58]} 2. Nf3 {[%clk 0:02:59]}  Nc6 {[%clk 0:02:59]} 3. d4 {[%clk 0:03:00]}  exd4 {[%clk 0:02:58]} 4. Bc4 {[%clk 0:03:00]}  Nf6 {[%clk 0:02:58]} 5. e5 {[%clk 0:03:01]}  d5 {[%clk 0:02:58]} 6. Bb5 {[%clk 0:03:01]}  Ne4 {[%clk 0:02:57]} 7. Nxd4 {[%clk 0:03:01]}  Bd7 {[%clk 0:02:57]} 8. Bxc6 {[%clk 0:03:01]}  bxc6 {[%clk 0:02:57]} 9. O-O {[%clk 0:03:00]}  Bc5 {[%clk 0:02:55]} 10. f3 {[%clk 0:03:00]}  Ng5 {[%clk 0:02:54]} 11. f4 {[%clk 0:03:01]}  Ne4 {[%clk 0:02:54]} 12. Be3 {[%clk 0:02:59]}  Bb6 {[%clk 0:02:52]} 13. Nd2 {[%clk 0:02:53]}  c5 {[%clk 0:02:46]} 14. N4f3 {[%clk 0:02:44]}  Nxd2 {[%clk 0:02:20]} 15. Qxd2 {[%clk 0:02:36]}  Bf5 {[%clk 0:02:00]} 16. c3 {[%clk 0:02:15]}  O-O {[%clk 0:01:58]} 17. Rae1 {[%clk 0:01:59]}  c4 {[%clk 0:01:54]} 18. Nd4 {[%clk 0:01:43]}  Bd3 {[%clk 0:01:45]} 19. Rf3 {[%clk 0:01:31]}  c5 {[%clk 0:01:44]} 20. Nb5 {[%clk 0:01:25]}  d4 {[%clk 0:01:43]} 21. Bf2 {[%clk 0:01:17]}  Qd7 {[%clk 0:01:24]} 22. Nd6 {[%clk 0:01:11]}  f6 {[%clk 0:01:22]} 23. Rg3 {[%clk 0:00:29]}  fxe5 {[%clk 0:01:11]} 24. fxe5 {[%clk 0:00:30]}  Bc7 {[%clk 0:01:11]} 25. cxd4 {[%clk 0:00:18]}  Bxd6 {[%clk 0:01:10]} 26. exd6 {[%clk 0:00:18]}  Qxd6 {[%clk 0:01:05]} 27. dxc5 {[%clk 0:00:18]}  Qd5 {[%clk 0:00:56]} 28. Qc3 {[%clk 0:00:14]}  Rf7 {[%clk 0:00:50]} 29. Bd4 {[%clk 0:00:14]}  g6 {[%clk 0:00:36]} 30. Re5 {[%clk 0:00:13]}  Rf1# {[%clk 0:00:34]} 0-1

[Event "December 19 Early 2023"]
[Site "https://www.chess.com"]
[Date "2023.12.19"]
[Round "6"]
[White "Kovalyov, Eduard"]
[Black "Chemin, Justo Reinaldo"]
[Result "1-0"]
[Board "159"]
[TimeControl "180+1"]
[WhiteFideId "14118033"]
[BlackFideId "2101580"]
[WhiteElo "2300"]
[BlackElo "1940"]
[WhiteTeam "UKR"]
[BlackTeam "BRA"]
[WhiteClock "0:00:34"]
[BlackClock "0:00:01"]

1. Nf3 {[%clk 0:03:00]}  e6 {[%clk 0:02:59]} 2. c4 {[%clk 0:03:00]}  d5 {[%clk 0:02:59]} 3. d4 {[%clk 0:03:00]}  c6 {[%clk 0:02:59]} 4. e3 {[%clk 0:02:57]}  Nf6 {[%clk 0:02:58]} 5. Bd3 {[%clk 0:02:56]}  Nbd7 {[%clk 0:02:58]} 6. O-O {[%clk 0:02:56]}  dxc4 {[%clk 0:02:56]} 7. Bxc4 {[%clk 0:02:56]}  b5 {[%clk 0:02:57]} 8. Be2 {[%clk 0:02:56]}  a6 {[%clk 0:02:57]} 9. a4 {[%clk 0:02:56]}  Bb7 {[%clk 0:02:52]} 10. Nbd2 {[%clk 0:02:54]}  Bd6 {[%clk 0:02:46]} 11. Nb3 {[%clk 0:02:53]}  e5 {[%clk 0:02:40]} 12. dxe5 {[%clk 0:02:50]}  Nxe5 {[%clk 0:02:36]} 13. Nxe5 {[%clk 0:02:49]}  Bxe5 {[%clk 0:02:37]} 14. Nc5 {[%clk 0:02:48]}  Qc7 {[%clk 0:02:28]} 15. f4 {[%clk 0:02:45]}  Rd8 {[%clk 0:01:55]} 16. Qc2 {[%clk 0:02:45]}  Bd6 {[%clk 0:01:53]} 17. Nxb7 {[%clk 0:02:45]}  Qxb7 {[%clk 0:01:53]} 18. Bf3 {[%clk 0:02:45]}  Rc8 {[%clk 0:01:41]} 19. axb5 {[%clk 0:02:44]}  axb5 {[%clk 0:01:41]} 20. e4 {[%clk 0:02:42]}  Bb8 {[%clk 0:01:29]} 21. Be3 {[%clk 0:02:17]}  O-O {[%clk 0:01:27]} 22. Bc5 {[%clk 0:02:12]}  Rfe8 {[%clk 0:01:24]} 23. g3 {[%clk 0:02:11]}  Nd7 {[%clk 0:01:15]} 24. Bf2 {[%clk 0:02:03]}  Nb6 {[%clk 0:01:08]} 25. b3 {[%clk 0:02:01]}  c5 {[%clk 0:01:02]} 26. Kg2 {[%clk 0:02:00]}  c4 {[%clk 0:01:00]} 27. e5 {[%clk 0:01:59]}  Qc7 {[%clk 0:00:58]} 28. bxc4 {[%clk 0:01:57]}  Nxc4 {[%clk 0:00:57]} 29. Qe2 {[%clk 0:01:54]}  Rcd8 {[%clk 0:00:46]} 30. Rfd1 {[%clk 0:01:48]}  Rxd1 {[%clk 0:00:46]} 31. Qxd1 {[%clk 0:01:44]}  Rd8 {[%clk 0:00:44]} 32. Qb3 {[%clk 0:01:17]}  Rd2 {[%clk 0:00:34]} 33. Ra2 {[%clk 0:01:17]}  Rxa2 {[%clk 0:00:30]} 34. Qxa2 {[%clk 0:01:17]}  h6 {[%clk 0:00:21]} 35. Qa6 {[%clk 0:01:11]}  Qd7 {[%clk 0:00:18]} 36. Bc6 {[%clk 0:01:02]}  Qc7 {[%clk 0:00:12]} 37. Qxb5 {[%clk 0:00:51]}  Na5 {[%clk 0:00:11]} 38. Bd5 {[%clk 0:00:44]}  Qc3 {[%clk 0:00:09]} 39. Qe8+ {[%clk 0:00:38]}  Kh7 {[%clk 0:00:01]} 40. Be4+ {[%clk 0:00:34]} 1-0

[Event "December 19 Early 2023"]
[Site "https://www.chess.com"]
[Date "2023.12.19"]
[Round "6"]
[White "Perossa, Nicolas"]
[Black "Essing, Arnold"]
[Result "1-0"]
[Board "160"]
[TimeControl "180+1"]
[WhiteFideId "2850520"]
[BlackFideId "4619862"]
[WhiteElo "1934"]
[BlackElo "2257"]
[WhiteTeam "ITA"]
[BlackTeam "GER"]
[WhiteClock "0:00:03"]
[BlackClock "0:00:00"]

1. d3 {[%clk 0:03:00]}  d5 {[%clk 0:02:55]} 2. Nd2 {[%clk 0:02:59]}  Nf6 {[%clk 0:02:54]} 3. g3 {[%clk 0:02:57]}  e5 {[%clk 0:02:52]} 4. Bg2 {[%clk 0:02:57]}  Nc6 {[%clk 0:02:51]} 5. c4 {[%clk 0:02:50]}  Be6 {[%clk 0:02:41]} 6. cxd5 {[%clk 0:02:46]}  Nxd5 {[%clk 0:02:40]} 7. Ngf3 {[%clk 0:02:45]}  Be7 {[%clk 0:02:39]} 8. O-O {[%clk 0:02:36]}  O-O {[%clk 0:02:39]} 9. Nc4 {[%clk 0:02:34]}  f6 {[%clk 0:02:36]} 10. a3 {[%clk 0:02:23]}  Qd7 {[%clk 0:02:36]} 11. b4 {[%clk 0:02:22]}  a5 {[%clk 0:02:25]} 12. b5 {[%clk 0:02:21]}  Nd4 {[%clk 0:02:25]} 13. Nxd4 {[%clk 0:02:21]}  exd4 {[%clk 0:02:26]} 14. a4 {[%clk 0:02:18]}  Nc3 {[%clk 0:02:19]} 15. Qc2 {[%clk 0:02:11]}  Bd5 {[%clk 0:02:17]} 16. Bxd5+ {[%clk 0:01:57]}  Qxd5 {[%clk 0:02:18]} 17. e4 {[%clk 0:01:52]}  Qh5 {[%clk 0:02:11]} 18. Bb2 {[%clk 0:01:25]}  Bb4 {[%clk 0:02:06]} 19. Bxc3 {[%clk 0:01:17]}  Bxc3 {[%clk 0:02:00]} 20. Qd1 {[%clk 0:01:12]}  Qc5 {[%clk 0:01:30]} 21. Rb1 {[%clk 0:00:56]}  f5 {[%clk 0:01:25]} 22. Qb3 {[%clk 0:00:12]}  Kh8 {[%clk 0:01:21]} 23. exf5 {[%clk 0:00:12]}  Rxf5 {[%clk 0:01:15]} 24. f4 {[%clk 0:00:07]}  Re8 {[%clk 0:00:24]} 25. Rf2 {[%clk 0:00:05]}  h6 {[%clk 0:00:24]} 26. Rbf1 {[%clk 0:00:05]}  Qd5 {[%clk 0:00:22]} 27. Qa2 {[%clk 0:00:03]}  b6 {[%clk 0:00:18]} 28. Ne5 {[%clk 0:00:03]}  Qxa2 {[%clk 0:00:11]} 29. Rxa2 {[%clk 0:00:04]}  g5 {[%clk 0:00:11]} 30. Nc4 {[%clk 0:00:03]}  gxf4 {[%clk 0:00:11]} 31. Rxf4 {[%clk 0:00:02]}  Rxf4 {[%clk 0:00:10]} 32. gxf4 {[%clk 0:00:03]}  Re1+ {[%clk 0:00:08]} 33. Kf2 {[%clk 0:00:03]}  Rd1 {[%clk 0:00:09]} 34. Ne5 {[%clk 0:00:04]}  Kg7 {[%clk 0:00:08]} 35. Kf3 {[%clk 0:00:04]}  Kf6 {[%clk 0:00:08]} 36. Ke2 {[%clk 0:00:02]}  Re1+ {[%clk 0:00:08]} 37. Kf3 {[%clk 0:00:02]}  Rh1 {[%clk 0:00:08]} 38. Ng4+ {[%clk 0:00:02]}  Kf5 {[%clk 0:00:07]} 39. Nf2 {[%clk 0:00:02]}  Rxh2 {[%clk 0:00:06]} 40. Re2 {[%clk 0:00:02]}  Kf6 {[%clk 0:00:02]} 41. Ng4+ {[%clk 0:00:02]}  Kf7 {[%clk 0:00:00]} 42. Nxh2 {[%clk 0:00:03]} 1-0

[Event "December 19 Early 2023"]
[Site "https://www.chess.com"]
[Date "2023.12.19"]
[Round "6"]
[White "Liu, Casper"]
[Black "Piddubna, Bozhena"]
[Result "1-0"]
[Board "162"]
[TimeControl "180+1"]
[WhiteFideId "1454153"]
[BlackFideId "34109293"]
[WhiteElo "2221"]
[BlackElo "1874"]
[WhiteTeam "DEN"]
[BlackTeam "UKR"]
[WhiteClock "0:00:32"]
[BlackClock "0:00:00"]

1. f4 {[%clk 0:02:43]}  d5 {[%clk 0:02:57]} 2. Nf3 {[%clk 0:02:43]}  c5 {[%clk 0:02:55]} 3. e3 {[%clk 0:02:44]}  Nc6 {[%clk 0:02:55]} 4. g3 {[%clk 0:02:44]}  Nf6 {[%clk 0:02:56]} 5. Bg2 {[%clk 0:02:45]}  Qc7 {[%clk 0:02:56]} 6. O-O {[%clk 0:02:46]}  e5 {[%clk 0:02:56]} 7. fxe5 {[%clk 0:02:46]}  Nxe5 {[%clk 0:02:56]} 8. d4 {[%clk 0:02:45]}  Nxf3+ {[%clk 0:02:51]} 9. Bxf3 {[%clk 0:02:44]}  Be7 {[%clk 0:02:50]} 10. Nc3 {[%clk 0:02:42]}  Be6 {[%clk 0:02:44]} 11. dxc5 {[%clk 0:02:28]}  Qxc5 {[%clk 0:02:36]} 12. Ne2 {[%clk 0:02:28]}  O-O {[%clk 0:02:19]} 13. Nd4 {[%clk 0:02:28]}  Bh3 {[%clk 0:02:20]} 14. Rf2 {[%clk 0:02:22]}  Ne4 {[%clk 0:02:14]} 15. Re2 {[%clk 0:02:20]}  Bf6 {[%clk 0:02:03]} 16. c3 {[%clk 0:02:14]}  Ng5 {[%clk 0:02:01]} 17. Rf2 {[%clk 0:02:02]}  Rfe8 {[%clk 0:01:50]} 18. Nb3 {[%clk 0:01:54]}  Nxf3+ {[%clk 0:00:41]} 19. Qxf3 {[%clk 0:01:55]}  Qc8 {[%clk 0:00:41]} 20. Qxd5 {[%clk 0:01:52]}  Rd8 {[%clk 0:00:41]} 21. Qf3 {[%clk 0:01:47]}  Qc6 {[%clk 0:00:40]} 22. Bd2 {[%clk 0:01:40]}  Qxf3 {[%clk 0:00:34]} 23. Rxf3 {[%clk 0:01:41]}  Be6 {[%clk 0:00:34]} 24. Nd4 {[%clk 0:01:40]}  Bd5 {[%clk 0:00:34]} 25. Rf2 {[%clk 0:01:38]}  a6 {[%clk 0:00:33]} 26. a4 {[%clk 0:01:36]}  Rab8 {[%clk 0:00:26]} 27. a5 {[%clk 0:01:36]}  b6 {[%clk 0:00:25]} 28. b4 {[%clk 0:01:35]}  bxa5 {[%clk 0:00:24]} 29. Rxa5 {[%clk 0:01:36]}  Bc4 {[%clk 0:00:21]} 30. Rff5 {[%clk 0:01:34]}  Bd3 {[%clk 0:00:18]} 31. Rfc5 {[%clk 0:01:33]}  Re8 {[%clk 0:00:17]} 32. Kf2 {[%clk 0:01:33]}  h6 {[%clk 0:00:16]} 33. Rd5 {[%clk 0:01:29]}  Bc4 {[%clk 0:00:16]} 34. Rdc5 {[%clk 0:01:28]}  Bd3 {[%clk 0:00:16]} 35. Rd5 {[%clk 0:01:29]}  Bc4 {[%clk 0:00:17]} 36. Rd7 {[%clk 0:01:30]}  Rbd8 {[%clk 0:00:13]} 37. Rc7 {[%clk 0:01:28]}  Rc8 {[%clk 0:00:12]} 38. Rac5 {[%clk 0:01:26]}  Rxc7 {[%clk 0:00:10]} 39. Rxc7 {[%clk 0:01:26]}  Bd3 {[%clk 0:00:10]} 40. h4 {[%clk 0:01:19]}  Ra8 {[%clk 0:00:10]} 41. Nc6 {[%clk 0:01:17]}  Re8 {[%clk 0:00:07]} 42. Na5 {[%clk 0:01:04]}  Rd8 {[%clk 0:00:06]} 43. c4 {[%clk 0:01:02]}  Bf5 {[%clk 0:00:05]} 44. Be1 {[%clk 0:00:56]}  Rd3 {[%clk 0:00:04]} 45. b5 {[%clk 0:00:49]}  Ra3 {[%clk 0:00:04]} 46. b6 {[%clk 0:00:49]}  Ra2+ {[%clk 0:00:04]} 47. Kg1 {[%clk 0:00:44]}  Be5 {[%clk 0:00:04]} 48. Rc5 {[%clk 0:00:43]}  Ra1 {[%clk 0:00:02]} 49. Rxe5 {[%clk 0:00:35]}  Rxe1+ {[%clk 0:00:02]} 50. Kf2 {[%clk 0:00:36]}  Rb1 {[%clk 0:00:00]} 51. b7 {[%clk 0:00:32]} 1-0

[Event "December 19 Early 2023"]
[Site "https://www.chess.com"]
[Date "2023.12.19"]
[Round "6"]
[White "Negron Lizarazo, Juan Sebastian"]
[Black "Gutierrez Olivares, Daniel"]
[Result "0-1"]
[Board "163"]
[TimeControl "180+1"]
[WhiteFideId "3936910"]
[BlackFideId "2264005"]
[WhiteElo "1647"]
[BlackElo "2317"]
[WhiteTeam "COL"]
[BlackTeam "ESP"]
[WhiteClock "0:01:11"]
[BlackClock "0:02:22"]

1. e4 {[%clk 0:02:54]}  e6 {[%clk 0:03:00]} 2. d4 {[%clk 0:02:49]}  d5 {[%clk 0:03:00]} 3. e5 {[%clk 0:02:50]}  c5 {[%clk 0:03:00]} 4. c3 {[%clk 0:02:50]}  Nc6 {[%clk 0:03:01]} 5. Nf3 {[%clk 0:02:49]}  Bd7 {[%clk 0:03:02]} 6. a3 {[%clk 0:02:49]}  c4 {[%clk 0:02:59]} 7. Nbd2 {[%clk 0:02:48]}  Qc7 {[%clk 0:02:58]} 8. b3 {[%clk 0:02:43]}  cxb3 {[%clk 0:02:54]} 9. Nxb3 {[%clk 0:02:40]}  f5 {[%clk 0:02:55]} 10. exf6 {[%clk 0:02:39]}  Nxf6 {[%clk 0:02:55]} 11. Bd3 {[%clk 0:02:39]}  Bd6 {[%clk 0:02:55]} 12. O-O {[%clk 0:02:39]}  O-O {[%clk 0:02:55]} 13. Re1 {[%clk 0:02:38]}  Rae8 {[%clk 0:02:56]} 14. Be3 {[%clk 0:02:36]}  e5 {[%clk 0:02:56]} 15. dxe5 {[%clk 0:02:34]}  Nxe5 {[%clk 0:02:57]} 16. Bd4 {[%clk 0:02:32]}  Nxf3+ {[%clk 0:02:53]} 17. Qxf3 {[%clk 0:02:30]}  Bxh2+ {[%clk 0:02:54]} 18. Kh1 {[%clk 0:02:27]}  Ne4 {[%clk 0:02:54]} 19. Bxe4 {[%clk 0:02:19]}  Rxf3 {[%clk 0:02:43]} 20. Bxd5+ {[%clk 0:02:19]}  Rf7 {[%clk 0:02:43]} 21. Bxf7+ {[%clk 0:02:08]}  Kxf7 {[%clk 0:02:42]} 22. g3 {[%clk 0:02:09]}  Bxg3 {[%clk 0:02:34]} 23. fxg3 {[%clk 0:02:04]}  Rxe1+ {[%clk 0:02:34]} 24. Rxe1 {[%clk 0:02:02]}  Qxg3 {[%clk 0:02:34]} 25. Rf1+ {[%clk 0:02:01]}  Kg8 {[%clk 0:02:33]} 26. Na5 {[%clk 0:01:38]}  b6 {[%clk 0:02:31]} 27. Bf2 {[%clk 0:01:24]}  Qh3+ {[%clk 0:02:28]} 28. Kg1 {[%clk 0:01:24]}  bxa5 {[%clk 0:02:28]} 29. Rd1 {[%clk 0:01:15]}  h6 {[%clk 0:02:24]} 30. Rd4 {[%clk 0:01:12]}  Bc6 {[%clk 0:02:22]} 31. Rd8+ {[%clk 0:01:11]}  Kh7 {[%clk 0:02:22]} 0-1